fUST/lending_fUST_20250620
["ID","MTS","AMOUNT","RATE_DAILY","PERIOD"]
[366676200,1750408241582,-593.32201618,0.00022176,6]
[366676201,1750408241592,-8321.80608,0.0002219,2]
[366676202,1750408241601,-161.810703,0.00022191,7]
[366676203,1750408241611,-479.58619677,0.00022191,6]
[366676204,1750408241621,-460.0,0.00022191,6]
[366676205,1750408241632,-460.0,0.00022191,6]
[366676206,1750408241642,-507.06040437,0.00022191,6]
[366676207,1750408241651,-460.0,0.00022191,6]
[366676208,1750408241661,-190.66,0.00022191,6]
[366676209,1750408241671,-168.31588206,0.00022191,6]
[366676210,1750408241680,-460.0,0.00022191,6]
[366676211,1750408241690,-460.0,0.00022191,6]
[366676212,1750408241699,-320.0,0.00022191,6]
[366676213,1750408241710,-460.0,0.00022191,6]
[366676214,1750408241720,-460.0,0.00022191,6]
[366676215,1750408241730,-460.0,0.00022191,6]
[366676216,1750408241739,-1296.29,0.00022191,6]
[366676217,1750408241749,-420.46,0.00022191,6]
[366676219,1750408241758,-460.0,0.00022191,6]
[366676220,1750408241767,-320.0,0.00022191,6]
[366676221,1750408241777,-460.0,0.00022191,6]
[366676223,1750408241787,-460.0,0.00022191,6]
[366676225,1750408241796,-460.0,0.00022191,6]
[366676227,1750408241806,-460.0,0.00022191,6]
[366676229,1750408241815,-599.55,0.00022191,6]
[366676231,1750408241827,-195.27758257,0.00022191,6]
[366676233,1750408241837,-492.01019082,0.00022191,6]
[366676235,1750408241846,-460.0,0.00022191,6]
[366676237,1750408241856,-460.0,0.00022191,6]
[366676238,1750408241865,-470.90899527,0.00022191,6]
[366676240,1750408241875,-460.0,0.00022191,6]
[366676242,1750408241885,-460.0,0.00022191,6]
[366676244,1750408241895,-460.0,0.00022191,6]
[366676246,1750408241905,-581.99,0.00022191,6]
[366676248,1750408241914,-263.24219257,0.00022191,6]
[366676250,1750408241923,-460.0,0.00022191,6]
[366676252,1750408241933,-460.0,0.00022191,6]
[366676254,1750408241944,-460.0,0.00022191,6]
[366676256,1750408241953,-460.0,0.00022191,6]
[366676257,1750408241962,-460.0,0.00022191,6]
[366676259,1750408241971,-460.0,0.00022191,6]
[366676261,1750408241981,-460.0,0.00022191,6]
[366676262,1750408241991,-460.0,0.00022191,6]
[366676264,1750408242001,-460.0,0.00022191,6]
[366676266,1750408242010,-460.0,0.00022191,6]
[366676268,1750408242020,-460.0,0.00022191,6]
[366676270,1750408242030,-481.33450272,0.00022191,6]
[366676272,1750408242039,-460.0,0.00022191,6]
[366676274,1750408242050,-460.0,0.00022191,6]
[366676286,1750408242173,-460.0,0.00022191,2]
[366676288,1750408242183,-460.0,0.00022191,6]
[366676290,1750408242194,-451.25767631,0.00022191,6]
[366676292,1750408242204,-460.0,0.00022191,6]
[366676293,1750408242214,-460.0,0.00022191,6]
[366676295,1750408242225,-460.0,0.00022191,6]
[366676297,1750408242234,-1391.78,0.00022191,2]
[366676299,1750408242245,-333.0,0.00022229,2]
[366676301,1750408242254,-663.0576321,0.00022242,2]
[366676303,1750408242263,-593.32201618,0.00022314,7]
[366676305,1750408242273,-475.0,0.00022345,2]
[366676307,1750408242284,-1000.0,0.00022421,2]
[366676309,1750408242294,-593.32201618,0.00022452,7]
[366676311,1750408242305,-460.0,0.00022465,6]
[366676313,1750408242315,-460.0,0.00022465,6]
[366676315,1750408242324,-462.37978116,0.00022465,6]
[366676316,1750408242334,-180.8,0.00022465,6]
[366676318,1750408242344,-1296.29,0.00022465,6]
[366676320,1750408242355,-460.0,0.00022465,6]
[366676322,1750408242365,-460.0,0.00022465,6]
[366676324,1750408242375,-460.0,0.00022465,6]
[366676326,1750408242389,-460.0,0.00022465,6]
[366676328,1750408242399,-389.05,0.00022465,6]
[366676330,1750408242409,-460.0,0.00022465,6]
[366676332,1750408242418,-194.72283656,0.00022465,6]
[366676333,1750408242429,-460.0,0.00022465,2]
[366676335,1750408242438,-460.0,0.00022465,6]
[366676337,1750408242448,-1391.78,0.00022465,2]
[366676339,1750408242458,-207.4,0.00022496,2]
[366676341,1750408242468,-12546.90244252,0.00022503,2]
[366676343,1750408242477,-846.08887863,0.00022503,2]
[366676345,1750408242487,-160.0,0.00022503,2]
[366676346,1750408242498,-213.51557418,0.00022503,2]
[366676348,1750408242508,-424.85694595,0.00022503,2]
[366676350,1750408242517,-160.0,0.00022509,2]
[366676352,1750408242527,-160.0,0.00022509,2]
[366676354,1750408242537,-160.0,0.00022509,2]
[366676356,1750408242546,-230.06456406,0.00022509,2]
[366676358,1750408242555,-836.27303475,0.00022509,2]
[366676360,1750408242565,-151.0,0.00022521,7]
[366676362,1750408242577,-641.43540376,0.00022571,2]
[366676364,1750408242587,-492.67350266,0.00022574,2]
[366676365,1750408242597,-593.32201618,0.0002259,7]
[366676367,1750408242608,-151.0,0.0002259,7]
[366676369,1750408242617,-511.48217077,0.00022605,2]
[366676371,1750408242629,-1000.0,0.00022606,2]
[366676373,1750408242638,-1000.0,0.00022627,2]
[366676375,1750408242648,-502.25914762,0.00022648,2]
[366676377,1750408242658,-238.5386587,0.00022658,2]
[366676379,1750408242667,-153.0,0.00022658,2]
[366676381,1750408242676,-177.2294814,0.00022658,2]
[366676382,1750408242686,-322.6313868,0.00022658,2]
[366676384,1750408242695,-153.0,0.00022658,2]
[366676386,1750408242705,-574.4346525,0.00022658,2]
[366676388,1750408242715,-153.0,0.00022658,2]
[366676390,1750408242726,-153.0,0.00022658,2]
[366676392,1750408242736,-177.2294814,0.00022658,2]
[366676394,1750408242746,-574.4346525,0.00022658,2]
[366676396,1750408242755,-153.0,0.00022658,2]
[366676398,1750408242765,-574.4346525,0.00022658,2]
[366676400,1750408242774,-153.0,0.00022658,2]
[366676401,1750408242783,-177.2294814,0.00022658,2]
[366676403,1750408242793,-177.2294814,0.00022658,2]
[366676405,1750408242802,-574.4346525,0.00022658,2]
[366676407,1750408242812,-574.4346525,0.00022658,2]
[366676409,1750408242822,-153.0,0.00022658,2]
[366676411,1750408242831,-153.0,0.00022658,2]
[366676413,1750408242840,-176.8341659,0.00022658,2]
[366676415,1750408242850,-996.7967892,0.00022658,2]
[366676417,1750408242859,-153.0,0.00022658,2]
[366676419,1750408242869,-153.0,0.00022658,2]
[366676420,1750408242879,-156.8092932,0.00022658,2]
[366676422,1750408242889,-325.0790001,0.00022658,2]
[366676424,1750408242898,-1123.37330923,0.00022658,2]
[366676426,1750408242908,-663.0576321,0.00022707,2]
[366676428,1750408242917,-475.0,0.00022727,2]
[366676430,1750408242927,-593.32201618,0.00022728,7]
[366676432,1750408242937,-167.184585,0.00022739,7]
[366676434,1750408242947,-460.0,0.00022739,6]
[366676436,1750408242956,-460.0,0.00022739,6]
[366676438,1750408242966,-1296.29,0.00022739,6]
[366676440,1750408242975,-460.0,0.00022739,6]
[366676441,1750408242985,-460.0,0.00022739,6]
[366676443,1750408242995,-179.97903999,0.00022739,6]
[366676445,1750408243004,-346.01681829,0.00022739,6]
[366676447,1750408243014,-460.0,0.00022739,6]
[366676449,1750408243025,-460.0,0.00022739,2]
[366676451,1750408243034,-460.0,0.00022739,6]
[366676453,1750408243044,-1391.78,0.00022739,2]
[366676455,1750408243053,-2328.34,0.000228,7]
[366676457,1750408243063,-593.32201618,0.00022866,8]
[366676459,1750408243072,-475.0,0.00022918,2]
[366676460,1750408243081,-1500.0,0.00022968,2]
[366676462,1750408243091,-515.56249769,0.00022973,2]
[366676464,1750408243100,-500.0,0.00022973,2]
[366676466,1750408243110,-162.332895,0.0002299,2]
[366676468,1750408243119,-162.332895,0.0002299,2]
[366676470,1750408243132,-180.211385,0.0002299,7]
[366676472,1750408243141,-160.158023,0.0002299,7]
[366676474,1750408243150,-182.231932,0.0002299,7]
[366676476,1750408243160,-182.231932,0.0002299,7]
[366676478,1750408243169,-151.0,0.0002299,7]
[366676480,1750408243178,-162.332895,0.00023,2]
[366676482,1750408243188,-162.332895,0.00023,2]
[366676484,1750408243198,-81895.80454289,0.00023,2]
[366676486,1750408243209,-1956.42982104,0.00023,2]
[366676488,1750408243219,-25814.21456548,0.00023,30]
[366676490,1750408243228,-10043.38789823,0.00023,2]
[366676492,1750408243238,-593.32201618,0.00023003,8]
[366676494,1750408243249,-460.0,0.00023013,6]
[366676495,1750408243258,-460.0,0.00023013,6]
[366676497,1750408243267,-1296.29,0.00023013,6]
[366676499,1750408243279,-535.33,0.00023013,6]
[366676501,1750408243288,-460.0,0.00023013,6]
[366676503,1750408243297,-167.3,0.00023013,6]
[366676506,1750408243307,-151.0,0.00023013,7]
[366676508,1750408243316,-200.85,0.00023013,2]
[366676511,1750408243326,-460.0,0.00023013,6]
[366676514,1750408243335,-1391.78,0.00023013,2]
[366676517,1750408243345,-475.0,0.00023016,2]
[366676519,1750408243354,-593.32201618,0.00023141,8]
[366676521,1750408243364,-500.0,0.00023146,2]
[366676523,1750408243374,-1000.0,0.00023154,2]
[366676525,1750408243385,-500.0,0.0002316,2]
[366676528,1750408243394,-159.67165378,0.0002316,2]
[366676530,1750408243403,-663.0576321,0.00023172,2]
[366676531,1750408243413,-1500.0,0.00023174,2]
[366676533,1750408243423,-481.09,0.000232,7]
[366676535,1750408243432,-501.05902246,0.00023213,2]
[366676537,1750408243442,-422.52183108,0.00023213,2]
[366676539,1750408243452,-501.96582216,0.00023225,2]
[366676541,1750408243462,-653.0,0.00023228,2]
[366676543,1750408243472,-2161.0,0.00023228,2]
[366676545,1750408243482,-406.0,0.00023228,2]
[366676547,1750408243491,-593.32201618,0.00023279,8]
[366676548,1750408243501,-160.0,0.00023286,2]
[366676550,1750408243510,-162.332895,0.00023287,2]
[366676552,1750408243521,-162.332895,0.00023287,2]
[366676554,1750408243531,-460.0,0.00023287,6]
[366676556,1750408243541,-460.0,0.00023287,6]
[366676558,1750408243550,-1296.29,0.00023287,6]
[366676560,1750408243560,-460.0,0.00023287,6]
[366676562,1750408243570,-274.44564555,0.00023287,6]
[366676563,1750408243584,-1391.78,0.00023287,2]
[366676565,1750408243594,-172.750604,0.00023288,7]
[366676567,1750408243604,-151.0,0.00023288,7]
[366676569,1750408243614,-151.0,0.00023288,7]
[366676571,1750408243625,-500.0,0.00023288,2]
[366676573,1750408243635,-500.0,0.00023288,2]
[366676575,1750408243645,-500.0,0.00023288,2]
[366676577,1750408243655,-500.0,0.00023288,2]
[366676579,1750408243665,-450.0,0.00023288,2]
[366676581,1750408243675,-500.0,0.00023288,2]
[366676583,1750408243684,-500.0,0.00023288,2]
[366676585,1750408243694,-500.0,0.00023288,2]
[366676586,1750408243704,-500.0,0.00023288,2]
[366676588,1750408243714,-151.0,0.000233,7]
[366676590,1750408243724,-2225.49356621,0.000233,2]
[366676592,1750408243734,-10000.0,0.000233,30]
[366676594,1750408243744,-315.56444016,0.0002331,30]
[366676596,1750408243754,-151.0,0.00023327,7]
[366676598,1750408243763,-501.3127716,0.00023327,2]
[366676600,1750408243773,-197.197,0.00023336,2]
[366676602,1750408243782,-168.0,0.00023374,2]
[366676604,1750408243792,-593.32201618,0.00023417,9]
[366676606,1750408243802,-168.0,0.0002342,2]
[366676608,1750408243811,-153.0,0.00023479,2]
[366676610,1750408243821,-153.0,0.00023479,2]
[366676611,1750408243830,-153.0,0.00023479,2]
[366676613,1750408243840,-153.0,0.00023479,2]
[366676615,1750408243849,-153.0,0.00023479,2]
[366676617,1750408243859,-153.0,0.00023479,2]
[366676619,1750408243869,-153.0,0.00023479,2]
[366676621,1750408243879,-153.0,0.00023479,2]
[366676623,1750408243889,-153.0,0.00023479,2]
[366676625,1750408243898,-168.0,0.00023488,2]
[366676627,1750408243908,-500.0,0.00023508,2]
[366676629,1750408243918,-500.0,0.00023508,2]
[366676632,1750408243927,-500.0,0.00023508,2]
[366676635,1750408243937,-600.0,0.00023508,2]
[366676638,1750408243946,-507.18149895,0.00023516,2]
[366676640,1750408243955,-501.63271554,0.00023521,2]
[366676642,1750408243965,-593.32201618,0.00023555,9]
[366676644,1750408243975,-460.0,0.00023561,6]
[366676646,1750408243985,-460.0,0.00023561,6]
[366676648,1750408243994,-182.231932,0.00023561,7]
[366676650,1750408244003,-182.231932,0.00023561,7]
[366676653,1750408244013,-1296.29,0.00023561,6]
[366676656,1750408244023,-460.0,0.00023561,6]
[366676659,1750408244033,-297.640501,0.00023561,7]
[366676662,1750408244042,-1391.78,0.00023561,2]
[366676665,1750408244053,-168.0,0.00023598,2]
[366676667,1750408244062,-832.12,0.000236,2]
[366676669,1750408244072,-663.0576321,0.00023637,2]
[366676671,1750408244081,-593.32201618,0.00023693,9]
[366676673,1750408244091,-1000.0,0.00023694,2]
[366676675,1750408244100,-2000.0,0.00023722,2]
[366676677,1750408244110,-420.0,0.00023774,2]
[366676679,1750408244119,-420.0,0.00023774,2]
[366676681,1750408244129,-420.0,0.00023777,2]
[366676683,1750408244139,-151.0,0.00023777,7]
[366676684,1750408244148,-1971.05936225,0.00023788,2]
[366676686,1750408244158,-2328.34,0.000238,7]
[366676688,1750408244167,-5000.0,0.000238,11]
[366676690,1750408244177,-151.0,0.000238,7]
[366676692,1750408244186,-151.0,0.000238,7]
[366676694,1750408244196,-151.0,0.000238,7]
[366676696,1750408244209,-640.0,0.000238,2]
[366676698,1750408244218,-12546.90244252,0.000238,7]
[366676700,1750408244227,-475.0,0.00023802,2]
[366676702,1750408244236,-593.32201618,0.00023831,10]
[366676703,1750408244246,-460.0,0.00023835,6]
[366676705,1750408244256,-460.0,0.00023835,6]
[366676707,1750408244266,-1296.29,0.00023835,6]
[366676709,1750408244276,-460.0,0.00023835,6]
[366676711,1750408244286,-1391.78,0.00023835,2]
[366676713,1750408244297,-215.0738,0.00023865,2]
[366676715,1750408244306,-1680.0,0.00023885,2]
[366676717,1750408244316,-2004.67,0.00023904,2]
[366676719,1750408244326,-772.069171,0.00023912,4]
[366676721,1750408244335,-168.0,0.00023935,2]
[366676723,1750408244345,-168.0,0.00023952,2]
[366676724,1750408244354,-593.32201618,0.00023969,10]
[366676726,1750408244364,-501.93263713,0.00023973,2]
[366676728,1750408244373,-500.0,0.00023973,2]
[366676730,1750408244384,-150.0,0.00023973,2]
[366676732,1750408244394,-500.0,0.00023973,2]
[366676734,1750408244403,-500.0,0.00023973,2]
[366676736,1750408244413,-500.0,0.00023973,2]
[366676738,1750408244423,-500.0,0.00023973,2]
[366676740,1750408244432,-500.0,0.00023973,2]
[366676742,1750408244441,-507.76649316,0.00023973,2]
[366676744,1750408244452,-510.02014759,0.00023973,2]
[366676746,1750408244461,-500.0,0.00023973,2]
[366676748,1750408244471,-500.0,0.00023973,2]
[366676749,1750408244481,-500.0,0.00023973,2]
[366676751,1750408244491,-500.0,0.00023973,2]
[366676753,1750408244500,-500.0,0.00023973,2]
[366676755,1750408244510,-162.332895,0.00023973,2]
[366676757,1750408244520,-162.332895,0.00023973,2]
[366676759,1750408244530,-4889.45654842,0.00023975,3]
[366676761,1750408244540,-151.0,0.00023975,7]
[366676763,1750408244549,-151.0,0.00023975,7]
[366676765,1750408244559,-153.028497,0.0002398,7]
[366676767,1750408244568,-151.0,0.0002399,7]
[366676769,1750408244578,-266.534446,0.0002399,7]
[366676771,1750408244588,-151.0,0.0002399,7]
[366676773,1750408244598,-151.0,0.0002399,7]
[366676775,1750408244608,-154.92981,0.0002399,7]
[366676777,1750408244618,-162.332895,0.00024,2]
[366676779,1750408244629,-162.332895,0.00024,2]
[366676781,1750408244638,-177.455432,0.00024,14]
[366676783,1750408244650,-151.0,0.00024,5]
[366676785,1750408244661,-6532.119199,0.00024,2]
[366676787,1750408244671,-182.231932,0.00024,7]
[366676789,1750408244681,-182.231932,0.00024,7]
[366676791,1750408244691,-230.06456406,0.00024,3]
[366676793,1750408244700,-230.06456406,0.00024,7]
[366676794,1750408244709,-846.08887863,0.00024,3]
[366676797,1750408244823,-160.0,0.00024,3]
[366676798,1750408244835,-160.0,0.00024,7]
[366676799,1750408244846,-62937.30190891,0.00024,28]
[366676800,1750408244972,-500.0,0.00021875,2]
[366676801,1750408244982,-14942.74633212,0.00024,28]
[366676802,1750408244991,-213.51557418,0.00024,3]
[366676803,1750408245001,-463.88,0.00024,30]
[366676804,1750408245010,-836.27303475,0.00024,3]
[366676805,1750408245019,-836.27303475,0.00024,7]
[366676806,1750408245029,-424.85694595,0.00024,3]
[366676807,1750408245038,-424.85694595,0.00024,7]
[366676808,1750408245048,-12546.90244252,0.00024,3]
[366676809,1750408245058,-1000.0,0.00024056,2]
[366676810,1750408245068,-1000.0,0.00024056,2]
[366676811,1750408245078,-1004.39420727,0.00024056,2]
[366676812,1750408245088,-1200.0,0.00024056,2]
[366676813,1750408245098,-663.0576321,0.00024102,2]
[366676814,1750408245107,-593.32201618,0.00024107,10]
[366676815,1750408245117,-460.0,0.00024109,6]
[366676816,1750408245127,-460.0,0.00024109,6]
[366676817,1750408245137,-1296.29,0.00024109,6]
[366676818,1750408245147,-460.0,0.00024109,6]
[366676819,1750408245157,-1391.78,0.00024109,2]
[366676820,1750408245166,-5000.0,0.00024126,2]
[366676821,1750408245176,-162.332895,0.000242,2]
[366676822,1750408245186,-162.332895,0.000242,2]
[366676823,1750408245197,-716.68502519,0.00024242,2]
[366676824,1750408245210,-593.32201618,0.00024245,10]
[366676825,1750408245220,-4940.21929232,0.00024255,2]
[366676826,1750408245229,-2500.0,0.0002427,2]
[366676828,1750408245239,-158.814139,0.000243,7]
[366676830,1750408245249,-151.0,0.000243,7]
[366676832,1750408245259,-2963.107,0.00024314,2]
[366676834,1750408245268,-593.32201618,0.00024383,11]
[366676836,1750408245278,-460.0,0.00024383,6]
[366676838,1750408245290,-460.0,0.00024383,6]
[366676840,1750408245301,-1296.29,0.00024383,6]
[366676842,1750408245311,-460.0,0.00024383,6]
[366676844,1750408245320,-1391.78,0.00024383,2]
[366676846,1750408245331,-19872.0741267,0.000244,2]
[366676848,1750408245340,-481.09,0.000244,7]
[366676850,1750408245349,-168.58296045,0.000244,2]
[366676852,1750408245359,-475.0,0.0002442,2]
[366676853,1750408245369,-151.0,0.00024423,7]
[366676855,1750408245381,-151.0,0.00024423,7]
[366676857,1750408245391,-4354.75853074,0.000245,2]
[366676859,1750408245400,-3132.11402322,0.000245,2]
[366676861,1750408245410,-500.0,0.000245,2]
[366676863,1750408245420,-275431.97305703,0.000245,2]
[366676865,1750408245430,-1000.61345598,0.000245,30]
[366676867,1750408245440,-143959.90050034,0.000245,2]
[366676874,1750408245499,-500.0,0.00021875,2]
[366676876,1750408245509,-500.0,0.00021875,2]
[366676878,1750408245519,-500.0,0.00021875,2]
[366676880,1750408245529,-500.0,0.00021875,2]
[366676882,1750408245538,-500.0,0.00021875,2]
[366676884,1750408245548,-500.0,0.00021875,2]
[366676886,1750408245557,-500.0,0.00021875,2]
[366676888,1750408245567,-478.17410885,0.00021917,6]
[366676890,1750408245577,-460.0,0.00021917,6]
[366676891,1750408245586,-6524.90782397,0.000245,2]
[366676893,1750408245596,-162.332895,0.000245,2]
[366676896,1750408245606,-162.332895,0.000245,2]
[366676897,1750408245616,-162.332895,0.000245,2]
[366676900,1750408245626,-162.332895,0.000245,2]
[366676902,1750408245636,-162.332895,0.000245,2]
[366676903,1750408245646,-162.332896,0.000245,2]
[366676905,1750408245655,-152.963289,0.000245,7]
[366676907,1750408245665,-151.0,0.000245,7]
[366676909,1750408245674,-151.0,0.000245,7]
[366676911,1750408245684,-151.0,0.000245,7]
[366676913,1750408245693,-83774.31,0.000245,2]
[366676915,1750408245703,-153.545801,0.000245,7]
[366676917,1750408245714,-151.0,0.000245,7]
[366676919,1750408245724,-151.0,0.000245,7]
[366676921,1750408245733,-151.0,0.000245,7]
[366676923,1750408245743,-182.231932,0.000245,7]
[366676925,1750408245752,-182.231932,0.000245,7]
[366676927,1750408245761,-182.231932,0.000245,7]
[366676929,1750408245771,-182.231932,0.000245,7]
[366676931,1750408245781,-182.231932,0.000245,7]
[366676933,1750408245789,-182.231932,0.000245,7]
[366676935,1750408245799,-151.0,0.000245,7]
[366676937,1750408245808,-151.0,0.000245,7]
[366676939,1750408245818,-151.0,0.000245,7]
[366676941,1750408245827,-1000.0,0.00024521,2]
[366676942,1750408245837,-300.0,0.00024521,2]
[366676944,1750408245847,-1000.0,0.00024521,2]
[366676946,1750408245857,-1000.0,0.00024521,2]
[366676948,1750408245866,-1000.0,0.00024521,2]
[366676950,1750408245876,-1000.0,0.00024521,2]
[366676952,1750408245887,-593.32201618,0.00024521,11]
[366676954,1750408245897,-663.0576321,0.00024567,2]
[366676956,1750408245906,-500.0,0.00024579,2]
[366676958,1750408245916,-7639.53489638,0.0002458,2]
[366676960,1750408245926,-4984.95179659,0.00024598,2]
[366676962,1750408245935,-200.0,0.00024598,30]
[366676964,1750408245945,-200.0,0.00024598,30]
[366676966,1750408245957,-200.0,0.00024598,30]
[366676968,1750408245967,-1500.0,0.00024604,2]
[366676970,1750408245977,-1500.0,0.00024604,2]
[366676972,1750408245987,-1800.0,0.00024604,2]
[366676974,1750408245997,-586.64716488,0.00024621,7]
[366676976,1750408246007,-7639.53489633,0.0002463,2]
[366676978,1750408246017,-475.0,0.00024632,2]
[366676980,1750408246028,-34983.95291206,0.00024644,7]
[366676982,1750408246039,-138468.30478414,0.0002465,2]
[366676984,1750408246049,-300.44671069,0.0002465,2]
[366676986,1750408246060,-162.175104,0.0002465,7]
[366676988,1750408246071,-151.0,0.0002465,7]
[366676989,1750408246082,-182.231932,0.0002465,7]
[366676991,1750408246093,-182.231932,0.0002465,7]
[366676993,1750408246103,-151.0,0.0002465,7]
[366676995,1750408246113,-5019.80319414,0.00024655,2]
[366676997,1750408246123,-160.0,0.00024656,2]
[366676999,1750408246136,-460.0,0.00024657,6]
[366677001,1750408246147,-300.0,0.00024657,4]
[366677003,1750408246158,-300.0,0.00024657,4]
[366677005,1750408246167,-272.06383033,0.00024657,4]
[366677007,1750408246177,-460.0,0.00024657,6]
[366677009,1750408246188,-1296.29,0.00024657,6]
[366677011,1750408246198,-460.0,0.00024657,6]
[366677013,1750408246209,-1391.78,0.00024657,2]
[366677016,1750408246223,-1000.0,0.00024658,2]
[366677019,1750408246233,-1000.0,0.00024658,2]
[366677022,1750408246243,-1000.0,0.00024658,2]
[366677024,1750408246253,-1000.0,0.00024658,2]
[366677026,1750408246266,-1000.0,0.00024658,2]
[366677029,1750408246276,-1000.0,0.00024658,2]
[366677031,1750408246287,-1000.0,0.00024658,2]
[366677033,1750408246297,-1000.0,0.00024658,2]
[366677035,1750408246307,-1000.0,0.00024658,2]
[366677037,1750408246317,-1000.0,0.00024658,2]
[366677039,1750408246326,-1000.0,0.00024658,2]
[366677041,1750408246336,-1000.0,0.00024658,2]
[366677043,1750408246345,-1000.0,0.00024658,2]
[366677045,1750408246355,-1000.0,0.00024658,2]
[366677046,1750408246364,-1000.0,0.00024658,2]
[366677048,1750408246374,-1000.0,0.00024658,2]
[366677050,1750408246387,-1000.0,0.00024658,2]
[366677052,1750408246398,-1000.0,0.00024658,2]
[366677054,1750408246407,-1000.0,0.00024658,2]
[366677056,1750408246418,-1000.0,0.00024658,2]
[366677058,1750408246428,-1000.0,0.00024658,2]
[366677060,1750408246437,-1000.0,0.00024658,2]
[366677062,1750408246447,-1000.0,0.00024658,2]
[366677064,1750408246457,-1000.0,0.00024658,2]
[366677066,1750408246467,-1000.0,0.00024658,2]
[366677068,1750408246477,-1000.0,0.00024658,2]
[366677070,1750408246486,-1000.0,0.00024658,2]
[366677072,1750408246496,-1000.0,0.00024658,2]
[366677074,1750408246506,-1000.0,0.00024658,2]
[366677076,1750408246515,-1000.0,0.00024658,2]
[366677078,1750408246525,-1000.0,0.00024658,2]
[366677080,1750408246535,-1000.0,0.00024658,2]
[366677082,1750408246544,-1000.0,0.00024658,2]
[366677084,1750408246553,-1000.0,0.00024658,2]
[366677086,1750408246563,-1000.0,0.00024658,2]
[366677087,1750408246573,-1000.0,0.00024658,2]
[366677089,1750408246582,-1000.0,0.00024658,2]
[366677091,1750408246593,-1000.0,0.00024658,2]
[366677093,1750408246602,-1000.0,0.00024658,2]
[366677095,1750408246612,-1000.0,0.00024658,2]
[366677097,1750408246622,-1000.0,0.00024658,2]
[366677099,1750408246632,-1000.0,0.00024658,2]
[366677101,1750408246642,-1000.0,0.00024658,2]
[366677103,1750408246651,-626.0,0.00024658,2]
[366677105,1750408246661,-380.0,0.00024658,2]
[366677107,1750408246670,-200.0,0.00024658,2]
[366677109,1750408246680,-463.54773612,0.00024658,2]
[366677111,1750408246689,-500.0,0.00024658,2]
[366677113,1750408246698,-593.32201618,0.00024659,11]
[366677115,1750408246708,-200.0,0.00024665,120]
[366677117,1750408246717,-200.0,0.00024672,120]
[366677119,1750408246727,-150.0,0.00024673,2]
[366677121,1750408246736,-226696.24248424,0.0002468,2]
[366677125,1750408246774,-156.4667223,0.00021875,2]
[366677128,1750408246787,-343.5332777,0.00021875,2]
[366677130,1750408246797,-500.0,0.00023288,2]
[366677132,1750408246807,-2110.47252282,0.0002468,2]
[366677161,1750408247091,-4676.17434707,0.0002468,2]
[366678466,1750408300461,-166.7069979,0.00021775,2]
[366678467,1750408326852,203405.02678006,0.00025156,60]
[366678468,1750408347787,176.837216,0.00022271,120]
[366678469,1750408351136,200.0,0.00024248,120]
[366678471,1750408438937,-262.00467616,0.00021259,2]
[366678472,1750408444506,-179.4001372,0.00021697,2]
[366678473,1750408471425,200.0,0.0002374,120]
[366678474,1750408531393,200.0,0.00024516,120]
[366678475,1750408592386,200.0,0.0002444,120]
[366678476,1750408598006,-75.60658922,0.00021697,2]
[366678477,1750408598031,-222.89209273,0.00021763,2]